Cogmind - Beta 13 @@@ ROGUE MODE // 2024.04.09 @ 15:48:43 Player: AntinDisguise Result: Destroyed self with Grenade Launcher Performance ------------- Evolutions (0) 0 Regions Visited (1) 200 Robots Destroyed (20) 100 Value Destroyed (454) 454 Prototype IDs (3) 60 Alien Tech Used (0) 0 Bonus (0) 0 TOTAL SCORE: 814 Bonus ------- None Cogmind --------- Core Integrity 0/250 Matter 137/300 Energy 237/250 System Corruption 2% Temperature Cool (0) Movement Treading (160) Location -10/Materials Parts ------- > --- POWER (1) -------- Ion Engine > --- PROPULSION (2) --- Light Treads > --- UTILITY (2) ------ Heat Sink Small Storage Unit > --- WEAPON (2) ------- Beam Rifle Grenade Launcher > --- INVENTORY (8) ---- Aluminum Leg Aluminum Leg Structural Scanner ECM Suite Hacking Suite Beam Rifle Grenade Launcher Grenade Launcher Peak State ------------ > --- POWER ------------ Ion Engine > --- PROPULSION ------- Light Treads Light Treads > --- UTILITY ---------- Heat Sink Small Storage Unit > --- WEAPON ----------- Beam Rifle Grenade Launcher > --- INVENTORY -------- Ion Engine Aluminum Leg Aluminum Leg Structural Scanner ECM Suite Beam Rifle [Rating: 8] Favorites ----------- Power Ion Engine Engine Ion Engine Propulsion Light Treads Treads Light Treads Utility Small Storage Unit Device Heat Sink Storage Small Storage Unit Weapon Grenade Launcher Energy Gun EM Pulse Gun Ballistic Gun Assault Rifle Ballistic Cannon Light Cannon Launcher Grenade Launcher Build | -11 -10 ------- Run | Yrd Mat Slots Evolved . | . . Power . | . . Propulsion . | . . Utility . | . . Weapon . | . . Parts Attached 20 | 7 13 Power 4 | 1 3 Engine 4 | 1 3 Core . | . . Reactor . | . . Propulsion 4 | 2 2 Treads 4 | 2 2 Leg . | . . Wheel . | . . Hover . | . . Flight . | . . Utility 3 | 1 2 Device 2 | . 2 Storage 1 | 1 . Processor . | . . Hackware . | . . Protection . | . . Artifact . | . . Weapon 9 | 3 6 Energy Gun 5 | 1 4 Energy Cannon . | . . Ballistic Gun 2 | 2 . Ballistic Cannon 1 | . 1 Launcher 1 | . 1 Special Weapon . | . . Impact Weapon . | . . Slashing Weapon . | . . Piercing Weapon . | . . Special Melee Weapon . | . . Unidentified Prototypes . | . . Parts Lost 4 | . 4 Power 2 | . 2 Propulsion 1 | . 1 Utility . | . . Weapon 1 | . 1 Highest Loss Streak 2 | . 2 To Critical Strikes . | . . Average Slot Usage (%) 90 | . 90 Engine 13 | . 13 Treads 24 | . 24 Device 9 | . 9 Storage 14 | . 14 Energy Gun 13 | . 13 Ballistic Gun 4 | . 4 Ballistic Cannon 4 | . 4 Launcher 5 | . 5 Naked Turns . | . . Heaviest Build 17 | 14 17 Greatest Support 40 | 40 40 Greatest Overweight (x) 3 | 3 2 Average Overweight (x) . | . . Largest Inventory Capacity 8 | 8 8 Average Capacity 7 | 7 8 Most Carried 8 | 6 8 Average Carried 4 | 2 4 Final Capacity 8 | 8 8 Final Carried 8 | 2 8 Class Distribution -------------------- 100% | Mutant Dominant Class ---------------- Mutant | -10/Materials Resources | -11 -10 ----------- Run | Yrd Mat Matter Collected 468 | 204 264 Remotely . | . . Salvage Created 510 | . 510 Parts 36 | . 36 Haulers Intercepted 1 | . 1 Recyclers Shooed . | . . Parts Field Recycled . | . . Retrieved Matter . | . . Parts Self-Destructed . | . . Prevented . | . . Kills | -11 -10 ------- Run | Yrd Mat Combat Hostiles Destroyed 11 | . 11 Guns 5 | . 5 Cannons 3 | . 3 AOE 3 | . 3 Classes Destroyed 8 | . 8 Worker 1 | . 1 Tunneler 1 | . 1 Hauler 1 | . 1 Recycler 2 | . 2 Operator 1 | . 1 Watcher 3 | . 3 Swarmer 3 | . 3 Grunt 8 | . 8 Best Kill Streak 8 | . 8 Combat Bots Only 7 | . 7 Max Kills in Single Turn 2 | . 2 Gunslinging . | . . Exploded 1 | . 1 Melee . | . . Uniques/NPCs Destroyed . | . . Combat | -11 -10 -------- Run | Yrd Mat Hostile Shots Fired 97 | . 97 Missed 23 | . 23 Damage Taken 947 | . 947 Core 257 | . 257 Absorbed by Shields . | . . Core Remaining (%) 100 | 100 . Volleys Fired 38 | . 38 Largest 2 | . 2 Hottest 100 | . 100 Shots Fired 73 | . 73 Gun 45 | . 45 Cannon 13 | . 13 Launcher 15 | . 15 Special . | . . Kinetic 24 | . 24 Thermal 27 | . 27 Explosive 15 | . 15 Electromagnetic 7 | . 7 Robot Hit Streak 9 | . 9 Robot Miss Streak 4 | . 4 Penetration Max . | . . Secondary Targets 1 | . 1 Max Gunslinging Chain 1 | . 1 Shots Hit Robots 40 | . 40 Core Hits 30 | . 30 Critical Kills . | . . Critical Parts Destroyed 1 | . 1 Critical Strikes 2 | . 2 Burn 1 | . 1 Destroy 1 | . 1 Melee Attacks . | . . Impact . | . . Slashing . | . . Piercing . | . . Sneak Attacks . | . . Combat Hostiles . | . . Follow-up Attacks . | . . Damage Inflicted 1233 | . 1233 Guns 380 | . 380 Cannons 105 | . 105 Explosions 748 | . 748 Melee . | . . Ramming . | . . Kinetic 180 | . 180 Thermal 416 | . 416 Explosive 572 | . 572 Electromagnetic 65 | . 65 Impact . | . . Slashing . | . . Piercing . | . . Highest Corruption 2 | . 2 Average Corruption 2 | . 2 Corruption Purged . | . . Corruption Blocked . | . . Effects 11 | . 11 Message Errors 4 | . 4 Matter Fused 2 | . 2 Energy Discharges 3 | . 3 Data Loss (minor) 1 | . 1 Misfires 1 | . 1 Overload Shots . | . . Overflow Damage 78 | . 78 Projectiles . | . . Explosions 78 | . 78 Melee . | . . Knockbacks 1 | . 1 Impact . | . . Kinetic 1 | . 1 Secondary . | . . Self-Inflicted Damage 154 | . 154 Shots 6 | . 6 Rammed . | . . Targets Rammed . | . . Kicked . | . . Crushed . | . . Highest Temperature 245 | . 245 Average Temperature 65 | . 65 Received Heat Transfer 363 | . 363 Siege Activations . | . . Robots Corrupted . | . . Combat Hostiles . | . . Parts Fried . | . . Impact Corruptions . | . . Robots Melted . | . . Combat Hostiles . | . . Parts Melted . | . . Heat Transferred 766 | . 766 Parts Sabotaged . | . . Parts Stolen . | . . Parts Stripped . | . . Power Chain Reactions . | . . Alert | -11 -10 ------- Run | Yrd Mat Peak Influence 243 | . 243 Initial . | . . Average 90 | . 96 Maximum Alert Level 1 | . 1 Low Security (%) 91 | 100 90 Level 1 8 | . 9 Level 2 . | . . Level 3 . | . . Level 4 . | . . Level 5 . | . . High Security . | . . Max Security . | . . Squads Dispatched 2 | . 2 Investigation . | . . Extermination . | . . Reinforcement 2 | . 2 Assault . | . . Garrison . | . . Intercept . | . . Searches Triggered . | . . Construction Impeded . | . . Haulers Reinforced . | . . Active Scanning Responses . | . . Cargo Convoy Interrupts . | . . Stealth | -11 -10 --------- Run | Yrd Mat Distress Signals 2 | . 2 Communications Jammed . | . . Distress Signals . | . . Times Spotted 17 | . 17 Peak Tracking Total 5 | . 5 Tactical Retreats . | . . Traps | -11 -10 ------- Run | Yrd Mat Traps Triggered 3 | . 3 Indirectly . | . . Trap Hack Attempts . | . . Triggered . | . . Disarmed . | . . Reprogrammed . | . . Reused . | . . Traps Extracted . | . . Installed . | . . Triggered . | . . Machines | -11 -10 ---------- Run | Yrd Mat Machines Disabled 4 | . 4 Max in Single Turn 2 | . 2 Machines Repaired . | . . Machines Dismantled . | . . Machines Sabotaged . | . . Overloaded Fab Kills . | . . Hacking | -11 -10 --------- Run | Yrd Mat Machines Accessed 4 | . 4 Terminals 3 | . 3 Fabricators . | . . Repair Stations . | . . Recycling Units 1 | . 1 Scanalyzers . | . . Garrison Access . | . . Total Hacks 9 | . 9 Successful 6 | . 6 Failed 3 | . 3 Catastrophic . | . . Database Lockouts . | . . Manual . | . . Terminals 6 | . 6 Fabricators . | . . Repair Stations . | . . Recycling Units 3 | . 3 Scanalyzers . | . . Garrison Access . | . . Terminal Hacks 3 | . 3 Prototype ID Bank 2 | . 2 Locate Traps 1 | . 1 Fabricator Hacks . | . . Repair Station Hacks . | . . Recycling Unit Hacks 3 | . 3 Process 1 | . 1 Report Inventory 1 | . 1 Retrieve Matter 1 | . 1 Scanalyzer . | . . Garrison Access Hacks . | . . Unauthorized Hacks . | . . Terminals . | . . Fabricators . | . . Repair Stations . | . . Recycling Units . | . . Scanalyzers . | . . Garrison Access . | . . Data Cores Recovered . | . . Used . | . . Hacking Detections 2 | . 2 Full Trace Events . | . . Feedback Events . | . . Feedback Blocked . | . . Robot Schematics Acquired . | . . Robots Built . | . . Authchips . | . . Time . | . . Total Robot Build Rating . | . . Part Schematics Acquired . | . . Parts Built . | . . Authchips . | . . Time . | . . Total Part Build Rating . | . . Parts Repaired . | . . Time . | . . Parts Recycled . | . . Recycled Matter . | . . Retrieved Matter . | . . Retrieved Components . | . . Parts Scanalyzed . | . . Part Schematics Acquired . | . . Parts Damaged . | . . Bothacking | -11 -10 ------------ Run | Yrd Mat Used RIF Installer . | . . Robots Hacked . | . . Non-combat . | . . Combat . | . . Robot Hacks Applied . | . . Relay Couplers Released . | . . Fabnet Peak Effective % . | . . Robots Rewired . | . . Allies Hacked . | . . Hacks Repelled . | . . Allies | -11 -10 -------- Run | Yrd Mat Total Allies . | . . Largest Group . | . . Highest-Rated Group . | . . Highest-Rated Ally . | . . Total Orders . | . . Ally Attacks . | . . Total Damage . | . . Kills . | . . Allies Corrupted . | . . Allies Melted . | . . Intel | -11 -10 ------- Run | Yrd Mat Robot Analysis Total . | . . Derelict Logs Recovered . | . . Drone Launches . | . . Drone Recoveries . | . . Exploration | -11 -10 ------------- Run | Yrd Mat Turns Passed 1497 | 91 1406 Spaces Moved 831 | 53 778 Core 24 | 21 3 Treads 807 | 32 775 Legs . | . . Wheels . | . . Hover . | . . Flight . | . . Fastest Speed 50 | 50 150 Average Speed 158 | 138 159 Slowest Speed 200 | 200 160 Overloaded Moves . | . . Propulsion Burnouts . | . . Robots Hopped . | . . Cave-ins Triggered . | . . Exploration Rate (%) 45 | 5 85 Regions Visited 1 Branch Regions . Pre-discovered Areas . | . . Known Exits Taken . | . . Unknown Exits Taken 1 | 1 . Scrap Searched . | . . Spaces Dug . | . . Terrain Destroyed 100 | . 100 Melee . | . . Projectile . | . . AOE 100 | . 100 Terrain Rammed . | . . Walls Destroyed . | . . Machines Disabled . | . . Actions | -11 -10 --------- Run | Yrd Mat Total 943 | 71 872 Wait 19 | 2 17 Move 830 | 52 778 Hop . | . . Pick Up 29 | 9 20 Fast Attach . | . . Attach 18 | 7 11 Detach . | . . Swap 2 | . 2 Drop 7 | 1 6 Fire 38 | . 38 Melee . | . . Ram . | . . Kick . | . . Crush . | . . Escape Stasis . | . . Rewire . | . . Trap . | . . Miscellaneous . | . . Route ------- -11/Scrapyard -10/Materials (discovered 3 exits: [*Mat x2] / [*Min]) History --------- Turn | Location | Event 7 | -11/Scrapyard | Discovered new exit (range 16) 92 | -11/Scrapyard | Entered Materials 113 | -10/Materials | Discovered new exit (range 16) 302 | -10/Materials | Build established: Mutant 516 | -10/Materials | Discovered new exit (range 12) 593 | -10/Materials | Core integrity fell below 50% 649 | -10/Materials | Destroyed 7 combat bots 1005 | -10/Materials | Discovered new exit (range 4) 1149 | -10/Materials | Core integrity fell below 20% 1498 | -10/Materials | Destroyed self with Grenade Launcher Last Messages --------------- Connecting with Terminal... >>Prototypes Downloading prototype IDs... Imp. Medium Laser Adv. Beam Cannon Connecting with Terminal... >>Traps(Locate) Found 6 traps in 1 array: 6x EMP Trap Map updated. W-16 Scout destroyed. K-01 Serf collects debris. T-07 Excavator destroyed. Material Processor disabled. The unstable cave ceiling collapses. System corrupted: Energy discharge (-62). R-06 Scavenger collects Mining Laser. R-06 Scavenger collects Wheel. U-05 Engineer lays Concrete. R-06 Scavenger destroyed. Map ----- +----------------------------------------------------+ | ??????????????????????????????????????? ???????? | | ?????????????????????????????????????# ???????? | | ?????????????????????????????????????# ???????? | | ?????????????????????????????????????# ???????? | | ?????????????????????????????????????# #??????? | | ???????????????????????????? ?????#### #??????? | | ?????????????????????????### ? #??????? | | ????????????????????????? ##?????? | | ????????????????????????? "??????? | | #######???? ########????? Y??????? | | T #????? ###### """ """ "??????? | | #?????? ^ """ """ #??????? | | """ #??????? ^ """ """ ###????? | | """ #????????#^ ""#????? | | """ #????????# ^ T"#????? | | #????????#^^!! """ """ ""#????? | | #####+########## != """ """ ###????? | | ## """ """ #??????? | | #T #??????? | | ## ######## | | ?# #######+############! """ """ # | | ## #???# # """ #%| """ """ # """ | | ## #???# # """" = """ """ # """ | | #???# """# """" # """ | | ##### """# """ # """ | | + """# "" @ + """ | | ## ##### # # # | | ## #???######## # # | | ?# #??????????# #u ## ## # | | # ??????????# = #u ## ## # | | ## ??????????######### ## ## # | | ? ??????????????###?# ## ## ######## | | # ?????????????? ## ## #??????? | | ## ?????????????? ? ## ## #??????? | | ? #?????????????? ? ## ## ####???? | | ?# #??????????????# #?######## ## #???? | | ?# #?###+#????????# ########## ## #???? | | ?# ? ????????# ## # ## #???? | | ?# ? ?????# ## # ######+####???? | | ?# ?? ? ?????# ## # # #???? | | ?? ??# #?# ?????# ## # + #???? | | ??? ??# #?#+######+## + # #???? | | ??? ??# #?# # # # #???? | | ??? ??# #?# """ # # #######+###???? | | ?? ??# #?# """ #+####### #???? | | ?? ??# #?# """ + */ #???? | | ?? ??# #?# # / #???? | | ###/#### #?# "Y" # ###+#######% #???? | | # ### """ # # !#??# #???? | | """ + + # # #### #???? | +----------------------------------------------------+ Best States ------------- Heat Dissipation 35 Energy Generation 10 Energy Capacity 250 Matter Stores 300 Matter Capacity 300 Sight Range 16 Robot Scan Range 14 Terrain Scan Density 10 Evasion (%) 40 Recoil Reduction 2 Item Schematics ----------------- None Robot Schematics ------------------ None Fabricated ------------ Nothing Alien Tech Used ----------------- None Achievements -------------- None Challenges ------------ None Game ------ Seed CloakingAssemblyPendant Manual? 0 Play Time 00:13:15 Cumulative 12.2 hours Start 2024.04.09 @ 15:18:40 End 2024.04.09 @ 15:48:43 Sessions 1 Manual Loads 0 Difficulty Rogue Special Mode None Game No. 30 Rogue 28 Adventurer 2 Explorer 0 Win Type - Total 0 Types 0/0/0/0/0/0/0/0/0 Lore% 8 Gallery% 22 Achievement% 16 Wizard Run 0 Options --------- Layout 1 ASCII 0 Keyboard 0 Movement Mouse Keybinds 0 Fullscreen 1 Font 16/SmallcapsGlow Map View 27x19 Zoom Use 99% Tactical HUD 0 Map Filters NONE Filters NONE Steam 1 RUN: 2d4decdd-9fde-4b54-813e-e826417f1227